fUSD/lending_fUSD_20250107
["ID","MTS","AMOUNT","RATE_DAILY","PERIOD"]
[347942096,1736230247135,-500.0,9.594e-05,2]
[347942097,1736230247145,-500.0,9.594e-05,2]
[347942098,1736230247155,-553.56,9.594e-05,2]
[347942099,1736230247164,-500.0,9.594e-05,2]
[347942100,1736230247173,-500.0,9.594e-05,2]
[347942101,1736230247184,-500.0,9.594e-05,2]
[347942102,1736230247193,-634.06990802,9.594e-05,2]
[347942103,1736230247203,-500.0,9.594e-05,2]
[347942104,1736230247212,-1220.41,9.594e-05,2]
[347942105,1736230247222,-500.0,9.594e-05,2]
[347942106,1736230247231,-500.0,9.594e-05,2]
[347942107,1736230247241,-500.0,9.594e-05,2]
[347942108,1736230247250,-500.0,9.594e-05,2]
[347942109,1736230247259,-500.0,9.594e-05,2]
[347942110,1736230247269,-500.0,9.594e-05,2]
[347942111,1736230247278,-463.66246351,9.594e-05,2]
[347942112,1736230247288,-500.0,9.594e-05,2]
[347942113,1736230247297,-500.0,9.594e-05,2]
[347942114,1736230247306,-500.0,9.594e-05,2]
[347942115,1736230247315,-500.0,9.594e-05,2]
[347942116,1736230247325,-500.0,9.594e-05,2]
[347942117,1736230247334,-500.0,9.594e-05,2]
[347942118,1736230247343,-500.0,9.594e-05,2]
[347942119,1736230247352,-500.0,9.594e-05,2]
[347942120,1736230247361,-500.0,9.594e-05,2]
[347942121,1736230247371,-500.0,9.594e-05,2]
[347942122,1736230247380,-500.0,9.594e-05,2]
[347942123,1736230247389,-500.0,9.594e-05,2]
[347942124,1736230247398,-500.0,9.594e-05,2]
[347942125,1736230247408,-500.0,9.594e-05,2]
[347942126,1736230247417,-500.0,9.594e-05,2]
[347942127,1736230247427,-500.0,9.594e-05,2]
[347942128,1736230247436,-500.0,9.594e-05,2]
[347942129,1736230247447,-574.06,9.594e-05,2]
[347942130,1736230247456,-591.53,9.594e-05,2]
[347942131,1736230247465,-500.0,9.594e-05,2]
[347942132,1736230247474,-325.97061035,9.594e-05,2]
[347942133,1736230247483,-500.0,9.594e-05,2]
[347942134,1736230247492,-500.0,9.594e-05,2]
[347942135,1736230247501,-500.0,9.594e-05,2]
[347942136,1736230247510,-500.0,9.594e-05,2]
[347942137,1736230247520,-500.0,9.594e-05,2]
[347942138,1736230247530,-500.0,9.594e-05,2]
[347942139,1736230247539,-500.0,9.594e-05,2]
[347942140,1736230247549,-500.0,9.594e-05,2]
[347942141,1736230247558,-500.0,9.595e-05,2]
[347942142,1736230247567,-500.0,9.595e-05,2]
[347942143,1736230247577,-500.0,9.595e-05,2]
[347942144,1736230247586,-500.0,9.595e-05,2]
[347942145,1736230247595,-500.0,9.595e-05,2]
[347942146,1736230247605,-500.0,9.595e-05,2]
[347942147,1736230247614,-902.88,9.595e-05,2]
[347942148,1736230247623,-500.0,9.595e-05,2]
[347942149,1736230247633,-500.0,9.595e-05,2]
[347942150,1736230247699,-500.0,9.595e-05,2]
[347942151,1736230247709,-32019.9246026,9.8e-05,2]
[347942152,1736230247726,-538.38428534,9.8e-05,2]
[347942153,1736230247744,-7084.55719837,9.8e-05,2]
[347942154,1736230247823,-391.36205656,9.041e-05,2]
[347942155,1736230247839,-108.63794344,9.041e-05,2]
[347942156,1736230247848,-501.62605656,9.8e-05,2]
[347942157,1736230247894,-487.46,9.8e-05,2]
[347942158,1736230247986,-141638.82680619,9.8e-05,2]
[347942159,1736230248002,-9611.62966877,9.8e-05,2]
[347942160,1736230248013,-1017.139145,9.8e-05,2]
[347942161,1736230248025,-282.45800005,9.8e-05,2]
[347942162,1736230248249,-263.122869,9.045e-05,2]
[347942163,1736230248260,-152.743821,9.313e-05,2]
[347942164,1736230248681,-0.22248372,9.045e-05,2]
[347942165,1736230248700,-424.92,9.045e-05,2]
[347942166,1736230248800,-106.65751628,9.045e-05,2]
[347942167,1736230248811,-347.256179,9.313e-05,2]
[347942168,1736230248821,-500.0,9.315e-05,2]
[347942169,1736230248835,-500.0,9.589e-05,2]
[347942170,1736230248845,-459.17430472,9.8e-05,2]
[347942171,1736230248858,-681.0,9.8e-05,2]
[347942172,1736230271468,1008.28715857,6.881e-05,7]
[347942178,1736230333174,769.20300131,6.881e-05,7]
[347942187,1736230522755,689.37676618,6.881e-05,7]
[347942188,1736230883308,2000.0,0.00012986,30]
[347942189,1736230883608,2000.0,0.00012986,30]
[347942190,1736230883985,2000.0,0.00012986,30]
[347942191,1736230884385,2000.0,0.00012986,30]
[347942192,1736230884707,2000.0,0.00012986,30]
[347942193,1736230885012,2000.0,0.00012986,30]
[347942194,1736230885356,2000.0,0.00012986,30]
[347942195,1736230885689,2000.0,0.00012986,30]
[347942197,1736230886006,2000.0,0.00012986,30]
[347942198,1736230886325,2000.0,0.00012986,30]
[347942199,1736230892795,2000.0,0.00012986,30]
[347942200,1736230892974,2000.0,0.00012986,30]
[347942201,1736230893282,2000.0,0.00012986,30]
[347942202,1736230893592,2000.0,0.00012986,30]
[347942203,1736230893901,2000.0,0.00012986,30]
[347942212,1736230962028,2000.0,0.00012986,30]
[347942213,1736230962325,2000.0,0.00012986,30]
[347942214,1736230962622,2000.0,0.00012986,30]
[347942215,1736230963426,2000.0,0.00012986,30]
[347942216,1736230963706,2000.0,0.00012986,30]
[347942217,1736230964017,2000.0,0.00012986,30]
[347942218,1736230964320,2000.0,0.00012986,30]
[347942219,1736230964614,2000.0,0.00012986,30]
[347942220,1736230964924,2000.0,0.00012986,30]
[347942221,1736230965360,2000.0,0.00012986,30]
[347942222,1736230968269,2000.0,0.00012986,30]
[347942223,1736230968757,2000.0,0.00012986,30]
[347942224,1736230968858,2000.0,0.00012986,30]
[347942225,1736230969217,2000.0,0.00012986,30]
[347942226,1736230969548,2000.0,0.00012986,30]
[347942227,1736230969839,2000.0,0.00012986,30]
[347942228,1736230970384,2000.0,0.00012986,30]
[347942229,1736230970450,2000.0,0.00012986,30]
[347942230,1736230970753,2000.0,0.00012986,30]
[347942231,1736230971059,2000.0,0.00012986,30]
[347942644,1736231432145,-500.0,8.219e-05,2]
[347942645,1736231432155,-594.6,8.219e-05,2]
[347942646,1736231432164,-500.0,8.219e-05,2]
[347942647,1736231432175,-500.0,8.219e-05,2]
[347942648,1736231432186,-296.5036951,8.219e-05,2]
[347942649,1736231432197,-203.4963049,8.219e-05,2]
[347942650,1736231432206,-500.0,8.219e-05,2]
[347942651,1736231432216,-1000.0,8.219e-05,2]
[347942652,1736231432226,-500.0,8.219e-05,2]
[347942653,1736231432235,-500.0,8.219e-05,2]
[347942654,1736231432244,-216.9700845,8.219e-05,2]
[347942655,1736231432256,-283.0299155,8.219e-05,2]
[347942656,1736231432265,-500.0,8.219e-05,2]
[347942657,1736231432274,-500.0,8.219e-05,2]
[347942658,1736231432284,-252.76585125,8.219e-05,2]
[347942659,1736231432295,-882.11414875,8.219e-05,2]
[347942660,1736231432305,-1900.0,8.22e-05,2]
[347942661,1736231432314,-4700.0,8.22e-05,2]
[347942662,1736231432323,-500.0,8.22e-05,2]
[347942663,1736231432333,-500.0,8.493e-05,2]
[347942664,1736231432342,-594.6,8.493e-05,2]
[347942665,1736231432352,-500.0,8.493e-05,2]
[347942666,1736231432361,-500.0,8.493e-05,2]
[347942667,1736231432370,-500.0,8.493e-05,2]
[347942668,1736231432379,-500.0,8.493e-05,2]
[347942669,1736231432390,-1000.0,8.493e-05,2]
[347942670,1736231432399,-500.0,8.493e-05,2]
[347942671,1736231432409,-500.0,8.493e-05,2]
[347942672,1736231432418,-500.0,8.493e-05,2]
[347942673,1736231432427,-2149.99655286,8.5e-05,2]
[347942674,1736231432437,-1000.0,8.552e-05,2]
[347942675,1736231432447,-250.0,8.583e-05,2]
[347942676,1736231432456,-413.46,8.6e-05,2]
[347942677,1736231432466,-500.0,8.767e-05,2]
[347942678,1736231432475,-594.6,8.767e-05,2]
[347942679,1736231432486,-500.0,8.767e-05,2]
[347942680,1736231432496,-500.0,8.767e-05,2]
[347942681,1736231432506,-500.0,8.767e-05,2]
[347942682,1736231432515,-500.0,8.767e-05,2]
[347942683,1736231432525,-500.0,8.767e-05,2]
[347942684,1736231432535,-1000.0,8.767e-05,2]
[347942685,1736231432544,-500.0,8.767e-05,2]
[347942686,1736231432553,-500.0,8.767e-05,2]
[347942687,1736231432562,-500.0,8.767e-05,2]
[347942688,1736231432571,-23900.0,8.911e-05,2]
[347942689,1736231432581,-150.0,9e-05,2]
[347942690,1736231432591,-150.0,9e-05,2]
[347942691,1736231432600,-150.0,9e-05,2]
[347942692,1736231432609,-500.0,9.041e-05,2]
[347942693,1736231432619,-594.6,9.041e-05,2]
[347942694,1736231432628,-500.0,9.041e-05,2]
[347942695,1736231432639,-500.0,9.041e-05,2]
[347942696,1736231432648,-500.0,9.041e-05,2]
[347942697,1736231432658,-500.0,9.041e-05,2]
[347942698,1736231432667,-500.0,9.041e-05,2]
[347942699,1736231432676,-347.16079755,9.041e-05,2]
[347942700,1736231432685,-500.0,9.041e-05,2]
[347942701,1736231432694,-500.0,9.041e-05,2]
[347942702,1736231432703,-500.0,9.041e-05,2]
[347942703,1736231432712,-203.06,9.046e-05,2]
[347942704,1736231432721,-500.0,9.046e-05,2]
[347942705,1736231432731,-500.0,9.046e-05,2]
[347942706,1736231432740,-500.0,9.046e-05,2]
[347942707,1736231432749,-157.118635,9.313e-05,2]
[347942708,1736231432759,-500.0,9.313e-05,2]
[347942709,1736231432769,-500.0,9.313e-05,2]
[347942711,1736231432778,-500.0,9.313e-05,2]
[347942712,1736231432787,-500.0,9.313e-05,2]
[347942714,1736231432796,-500.0,9.313e-05,2]
[347942716,1736231432805,-500.0,9.313e-05,2]
[347942718,1736231432814,-500.0,9.313e-05,2]
[347942720,1736231432824,-500.0,9.313e-05,2]
[347942722,1736231432833,-500.0,9.313e-05,2]
[347942723,1736231432843,-500.0,9.313e-05,2]
[347942724,1736231432852,-500.0,9.313e-05,2]
[347942725,1736231432861,-500.0,9.313e-05,2]
[347942726,1736231432870,-500.0,9.313e-05,2]
[347942727,1736231432880,-500.0,9.313e-05,2]
[347942728,1736231432891,-500.0,9.313e-05,2]
[347942729,1736231432900,-500.0,9.313e-05,2]
[347942730,1736231432909,-500.0,9.313e-05,2]
[347942731,1736231432919,-500.0,9.313e-05,2]
[347942732,1736231432928,-744.17,9.313e-05,2]
[347942733,1736231432938,-500.0,9.313e-05,2]
[347942734,1736231432947,-500.0,9.313e-05,2]
[347942735,1736231432956,-500.0,9.313e-05,2]
[347942736,1736231432966,-500.0,9.313e-05,2]
[347942737,1736231432975,-500.0,9.313e-05,2]
[347942738,1736231432985,-500.0,9.313e-05,2]
[347942739,1736231432994,-500.0,9.313e-05,2]
[347942740,1736231433004,-535.92,9.313e-05,2]
[347942741,1736231433013,-500.0,9.313e-05,2]
[347942742,1736231433023,-500.0,9.313e-05,2]
[347942743,1736231433033,-500.0,9.313e-05,2]
[347942744,1736231433043,-500.0,9.313e-05,2]
[347942745,1736231433053,-565.83,9.313e-05,2]
[347942746,1736231433063,-500.0,9.313e-05,2]
[347942747,1736231433073,-500.0,9.313e-05,2]
[347942748,1736231433082,-500.0,9.313e-05,2]
[347942749,1736231433091,-500.0,9.313e-05,2]
[347942750,1736231433101,-509.42280811,9.313e-05,2]
[347942751,1736231433111,-500.0,9.313e-05,2]
[347942752,1736231433120,-1252.8,9.313e-05,2]
[347942753,1736231433130,-217.506298,9.313e-05,2]
[347942754,1736231433141,-500.0,9.313e-05,2]
[347942755,1736231433151,-572.44,9.313e-05,2]
[347942756,1736231433161,-1607.74,9.313e-05,2]
[347942757,1736231433171,-500.0,9.313e-05,2]
[347942758,1736231433184,-603.77,9.313e-05,2]
[347942759,1736231433193,-2272.96,9.313e-05,2]
[347942760,1736231433203,-500.0,9.314e-05,2]
[347942761,1736231433213,-500.0,9.314e-05,2]
[347942762,1736231433223,-500.0,9.314e-05,2]
[347942763,1736231433234,-500.0,9.315e-05,2]
[347942764,1736231433244,-594.6,9.315e-05,2]
[347942765,1736231433254,-500.0,9.315e-05,2]
[347942766,1736231433264,-500.0,9.315e-05,2]
[347942767,1736231433274,-500.0,9.315e-05,2]
[347942768,1736231433284,-500.0,9.315e-05,2]
[347942769,1736231433294,-500.0,9.315e-05,2]
[347942770,1736231433303,-500.0,9.315e-05,2]
[347942771,1736231433313,-500.0,9.315e-05,2]
[347942772,1736231433323,-500.0,9.315e-05,2]
[347942773,1736231433333,-500.34609981,9.32e-05,2]
[347942774,1736231433342,-500.67256659,9.32e-05,2]
[347942775,1736231433352,-500.0,9.32e-05,2]
[347942776,1736231433361,-547.72695008,9.32e-05,2]
[347942777,1736231433371,-500.0,9.32e-05,2]
[347942778,1736231433380,-500.0,9.32e-05,2]
[347942779,1736231433391,-150.0,9.5e-05,2]
[347942780,1736231433401,-500.0,9.587e-05,2]
[347942781,1736231433410,-500.0,9.587e-05,2]
[347942782,1736231433420,-500.0,9.587e-05,2]
[347942783,1736231433429,-500.0,9.587e-05,2]
[347942784,1736231433439,-500.0,9.587e-05,2]
[347942785,1736231433449,-500.0,9.587e-05,2]
[347942786,1736231433459,-205.32,9.587e-05,2]
[347942787,1736231433469,-500.0,9.587e-05,2]
[347942788,1736231433478,-500.0,9.587e-05,2]
[347942789,1736231433488,-500.0,9.587e-05,2]
[347942790,1736231433498,-500.0,9.587e-05,2]
[347942791,1736231433508,-252.33,9.587e-05,2]
[347942792,1736231433519,-500.0,9.587e-05,2]
[347942793,1736231433529,-500.0,9.587e-05,2]
[347942794,1736231433539,-500.0,9.587e-05,2]
[347942795,1736231433549,-500.0,9.587e-05,2]
[347942796,1736231433559,-744.17,9.587e-05,2]
[347942797,1736231433569,-500.0,9.587e-05,2]
[347942798,1736231433579,-500.0,9.587e-05,2]
[347942799,1736231433589,-500.0,9.587e-05,2]
[347942800,1736231433598,-500.0,9.587e-05,2]
[347942801,1736231433608,-500.0,9.587e-05,2]
[347942802,1736231433618,-500.0,9.587e-05,2]
[347942803,1736231433628,-500.0,9.587e-05,2]
[347942804,1736231433641,-535.92,9.587e-05,2]
[347942805,1736231433651,-500.0,9.587e-05,2]
[347942806,1736231433661,-500.0,9.587e-05,2]
[347942807,1736231433670,-500.0,9.587e-05,2]
[347942808,1736231433681,-583.13,9.587e-05,2]
[347942809,1736231433691,-500.0,9.587e-05,2]
[347942810,1736231433700,-500.0,9.587e-05,2]
[347942811,1736231433711,-551.48,9.587e-05,2]
[347942812,1736231433721,-500.0,9.587e-05,2]
[347942813,1736231433731,-500.0,9.587e-05,2]
[347942814,1736231433741,-1252.8,9.587e-05,2]
[347942815,1736231433751,-500.0,9.587e-05,2]
[347942816,1736231433762,-572.44,9.587e-05,2]
[347942817,1736231433772,-1607.74,9.587e-05,2]
[347942818,1736231433781,-500.0,9.587e-05,2]
[347942819,1736231433791,-603.77,9.587e-05,2]
[347942820,1736231433801,-2272.96,9.587e-05,2]
[347942821,1736231433811,-630.494332,9.589e-05,2]
[347942822,1736231433820,-594.6,9.589e-05,2]
[347942823,1736231433829,-500.0,9.589e-05,2]
[347942824,1736231433839,-500.0,9.589e-05,2]
[347942825,1736231433849,-500.0,9.589e-05,2]
[347942826,1736231433858,-500.0,9.589e-05,2]
[347942827,1736231433868,-500.0,9.589e-05,2]
[347942828,1736231433879,-500.0,9.589e-05,2]
[347942829,1736231433894,-500.0,9.589e-05,2]
[347942830,1736231433904,-500.0,9.589e-05,2]
[347942831,1736231433914,-1900.0,9.59e-05,2]
[347942832,1736231433924,-2207.02178111,9.59e-05,2]
[347942833,1736231433938,-2113.28286315,9.59e-05,2]
[347942834,1736231433967,-379.69535574,9.59e-05,2]
[347942835,1736231433977,-500.0,9.59e-05,2]
[347942836,1736231433986,-112.49028042,9.593e-05,2]
[347942842,1736231438189,-500.0,9.046e-05,2]
[347942843,1736231438199,-500.0,9.32e-05,2]
[347942844,1736231438208,-387.50971958,9.593e-05,2]
[347942845,1736231438218,-500.0,9.593e-05,2]
[347942846,1736231438227,-500.0,9.593e-05,2]
[347942847,1736231438439,-610.633397,9.593e-05,2]
[347942849,1736231438450,-797.59895176,9.593e-05,2]
[347942852,1736231438465,-2142.20104824,9.593e-05,2]
[347942854,1736231438476,-787.66,9.593e-05,2]
[347942856,1736231438486,-305.322213,9.593e-05,2]
[347942858,1736231438496,-500.0,9.593e-05,2]
[347942860,1736231438505,-500.0,9.593e-05,2]
[347942862,1736231438515,-241.27,9.593e-05,2]
[347942864,1736231438525,-500.0,9.593e-05,2]
[347942866,1736231438534,-500.0,9.593e-05,2]
[347942868,1736231438543,-562.85,9.593e-05,2]
[347942870,1736231438552,-500.0,9.593e-05,2]
[347942872,1736231438561,-1067.86,9.593e-05,2]
[347942874,1736231438570,-500.0,9.593e-05,2]
[347942876,1736231438579,-951.71,9.593e-05,2]
[347942878,1736231438589,-500.0,9.593e-05,2]
[347942880,1736231438599,-500.0,9.593e-05,2]
[347942883,1736231438608,-500.0,9.593e-05,2]
[347942885,1736231438617,-500.0,9.593e-05,2]
[347942888,1736231438627,-659.69,9.593e-05,2]
[347942890,1736231438637,-500.0,9.593e-05,2]
[347942892,1736231438646,-500.0,9.593e-05,2]
[347942894,1736231438655,-500.0,9.593e-05,2]
[347942896,1736231438664,-1053.88,9.593e-05,2]
[347942898,1736231438673,-500.0,9.593e-05,2]
[347942900,1736231438683,-549.35,9.593e-05,2]
[347942902,1736231438692,-500.0,9.593e-05,2]
[347942904,1736231438701,-500.0,9.593e-05,2]
[347942906,1736231438710,-663.34,9.593e-05,2]
[347942908,1736231438720,-500.0,9.593e-05,2]
[347942910,1736231438730,-582.22,9.593e-05,2]
[347942912,1736231438739,-500.0,9.594e-05,2]
[347942914,1736231438748,-500.0,9.594e-05,2]
[347942916,1736231438757,-500.0,9.594e-05,2]
[347942918,1736231438768,-500.0,9.594e-05,2]
[347942920,1736231438777,-500.0,9.594e-05,2]
[347942922,1736231438786,-500.0,9.594e-05,2]
[347942924,1736231438795,-500.0,9.594e-05,2]
[347942926,1736231438804,-500.0,9.594e-05,2]
[347942928,1736231438813,-500.0,9.594e-05,2]
[347942930,1736231438823,-500.0,9.594e-05,2]
[347942932,1736231438831,-500.0,9.594e-05,2]
[347942933,1736231438840,-500.0,9.594e-05,2]
[347942935,1736231438850,-500.0,9.594e-05,2]
[347942937,1736231438860,-500.0,9.594e-05,2]
[347942939,1736231438869,-500.0,9.594e-05,2]
[347942941,1736231438878,-500.0,9.594e-05,2]
[347942943,1736231438889,-642.73,9.594e-05,2]
[347942946,1736231438899,-500.0,9.594e-05,2]
[347942948,1736231438908,-500.0,9.594e-05,2]
[347942950,1736231438917,-500.0,9.594e-05,2]
[347942952,1736231438927,-500.0,9.594e-05,2]
[347942954,1736231438936,-500.0,9.594e-05,2]
[347942956,1736231438945,-500.0,9.594e-05,2]
[347942958,1736231438954,-500.83026792,9.594e-05,2]
[347942960,1736231438963,-500.0,9.594e-05,2]
[347942962,1736231438972,-569.44,9.594e-05,2]
[347942964,1736231438982,-500.0,9.594e-05,2]
[347942966,1736231438991,-500.0,9.594e-05,2]
[347942968,1736231439000,-500.0,9.594e-05,2]
[347942970,1736231439009,-500.0,9.594e-05,2]
[347942972,1736231439017,-500.0,9.594e-05,2]
[347942973,1736231439026,-500.0,9.594e-05,2]
[347942975,1736231439035,-500.0,9.594e-05,2]
[347942977,1736231439043,-500.0,9.594e-05,2]
[347942979,1736231439052,-500.0,9.594e-05,2]
[347942981,1736231439061,-500.0,9.594e-05,2]
[347942983,1736231439070,-500.0,9.594e-05,2]
[347942985,1736231439079,-500.0,9.594e-05,2]
[347942987,1736231439088,-500.0,9.594e-05,2]
[347942989,1736231439097,-500.0,9.594e-05,2]
[347942991,1736231439107,-500.0,9.594e-05,2]
[347942993,1736231439116,-500.0,9.594e-05,2]
[347942995,1736231439126,-560.6,9.594e-05,2]
[347942997,1736231439135,-500.0,9.594e-05,2]
[347942999,1736231439144,-500.0,9.594e-05,2]
[347943001,1736231439154,-500.0,9.594e-05,2]
[347943002,1736231439166,-500.0,9.594e-05,2]
[347943004,1736231439176,-500.0,9.594e-05,2]
[347943006,1736231439186,-500.0,9.594e-05,2]
[347943007,1736231439196,-500.0,9.594e-05,2]
[347943008,1736231439205,-500.0,9.594e-05,2]
[347943009,1736231439214,-317.39400158,9.594e-05,2]
[347943010,1736231439224,-500.0,9.594e-05,2]
[347943011,1736231439233,-500.0,9.594e-05,2]
[347943012,1736231439243,-500.0,9.594e-05,2]
[347943013,1736231439253,-500.0,9.594e-05,2]
[347943014,1736231439262,-500.0,9.594e-05,2]
[347943015,1736231439272,-500.0,9.594e-05,2]
[347943016,1736231439281,-500.0,9.594e-05,2]
[347943017,1736231439291,-500.0,9.594e-05,2]
[347943018,1736231439300,-500.0,9.594e-05,2]
[347943019,1736231439310,-500.0,9.594e-05,2]
[347943020,1736231439319,-500.0,9.594e-05,2]
[347943021,1736231439329,-500.0,9.594e-05,2]
[347943022,1736231439339,-500.0,9.594e-05,2]
[347943023,1736231439348,-500.0,9.594e-05,2]
[347943024,1736231439358,-500.0,9.594e-05,2]
[347943025,1736231439367,-500.0,9.594e-05,2]
[347943026,1736231439377,-500.0,9.594e-05,2]
[347943027,1736231439387,-500.62854446,9.594e-05,2]
[347943028,1736231439397,-500.86313,9.594e-05,2]
[347943029,1736231439406,-500.0,9.594e-05,2]
[347943030,1736231439415,-500.0,9.594e-05,2]
[347943031,1736231439425,-500.0,9.594e-05,2]
[347943032,1736231439435,-500.0,9.594e-05,2]
[347943033,1736231439444,-500.0,9.594e-05,2]
[347943034,1736231439453,-500.0,9.594e-05,2]
[347943035,1736231439462,-500.0,9.594e-05,2]
[347943036,1736231439472,-500.0,9.594e-05,2]
[347943037,1736231439481,-500.0,9.594e-05,2]
[347943038,1736231439491,-500.0,9.594e-05,2]
[347943039,1736231439500,-500.0,9.594e-05,2]
[347943040,1736231439510,-500.0,9.594e-05,2]
[347943041,1736231439519,-500.0,9.594e-05,2]
[347943042,1736231439528,-500.0,9.594e-05,2]
[347943043,1736231439539,-500.0,9.594e-05,2]
[347943044,1736231439548,-500.0,9.594e-05,2]
[347943045,1736231439558,-500.0,9.594e-05,2]
[347943046,1736231439569,-500.0,9.594e-05,2]
[347943047,1736231439578,-435.76810137,9.594e-05,2]
[347943048,1736231439588,-500.0,9.594e-05,2]
[347943049,1736231439597,-500.0,9.594e-05,2]
[347943050,1736231439606,-541.29,9.594e-05,2]
[347943051,1736231439616,-500.0,9.594e-05,2]
[347943052,1736231439626,-500.0,9.594e-05,2]
[347943053,1736231439637,-500.0,9.594e-05,2]
[347943054,1736231439647,-500.0,9.594e-05,2]
[347943055,1736231439656,-500.0,9.594e-05,2]
[347943056,1736231439666,-500.0,9.594e-05,2]
[347943057,1736231439675,-500.0,9.594e-05,2]
[347943058,1736231439685,-635.9880879,9.594e-05,2]
[347943059,1736231439694,-255.33098131,9.594e-05,2]
[347943060,1736231439704,-500.0,9.594e-05,2]
[347943061,1736231439713,-500.0,9.594e-05,2]
[347943062,1736231439723,-500.0,9.594e-05,2]
[347943063,1736231439732,-500.0,9.594e-05,2]
[347943064,1736231439741,-258.38283536,9.594e-05,2]
[347943065,1736231439751,-500.0,9.594e-05,2]
[347943066,1736231439760,-265.59970509,9.594e-05,2]
[347943067,1736231439769,-500.0,9.594e-05,2]
[347943068,1736231439779,-500.0,9.594e-05,2]
[347943069,1736231439788,-500.0,9.594e-05,2]
[347943070,1736231439798,-500.0,9.594e-05,2]
[347943071,1736231439808,-500.0,9.594e-05,2]
[347943072,1736231439817,-500.0,9.594e-05,2]
[347943073,1736231439827,-500.0,9.594e-05,2]
[347943074,1736231439836,-500.0,9.594e-05,2]
[347943075,1736231439846,-542.23,9.594e-05,2]
[347943076,1736231439855,-488.38590909,9.594e-05,2]
[347943077,1736231439864,-500.0,9.594e-05,2]
[347943078,1736231439874,-500.0,9.594e-05,2]
[347943079,1736231439884,-500.0,9.594e-05,2]
[347943080,1736231439894,-500.0,9.594e-05,2]
[347943081,1736231439903,-500.0,9.594e-05,2]
[347943082,1736231439913,-500.0,9.594e-05,2]
[347943083,1736231439923,-500.0,9.594e-05,2]
[347943084,1736231439933,-592.97643171,9.594e-05,2]
[347943085,1736231439942,-1000.0,9.621e-05,2]
[347943087,1736231439952,-413.46,9.675e-05,2]
[347943088,1736231439962,-500.0,9.797e-05,2]
[347943089,1736231439971,-500.0,9.797e-05,2]
[347943091,1736231439981,-500.0,9.797e-05,2]
[347943092,1736231439990,-500.0,9.797e-05,2]
[347943094,1736231440000,-500.0,9.797e-05,2]
[347943095,1736231440009,-500.0,9.797e-05,2]
[347943096,1736231440018,-500.0,9.797e-05,2]
[347943097,1736231440028,-500.0,9.797e-05,2]
[347943098,1736231440037,-168.4553321,9.797e-05,2]
[347943099,1736231440059,-331.5446679,9.797e-05,2]
[347943101,1736231440069,-500.0,9.797e-05,2]
[347943102,1736231440079,-21.44669354,9.797e-05,2]
[347943103,1736231440268,-343.88842845,9.594e-05,2]
[347943104,1736231440280,-156.11157155,9.594e-05,2]
[347943105,1736231440290,-478.55330646,9.797e-05,2]
[347943106,1736231440300,-500.0,9.797e-05,2]
[347943107,1736231440310,-157.61943384,9.797e-05,2]
[347943108,1736231440322,-342.38056616,9.797e-05,2]
[347943109,1736231440331,-308.61943384,9.797e-05,2]
[347943110,1736231440496,-191.38056616,9.797e-05,2]
[347943111,1736231440506,-349.57943189,9.797e-05,2]
[347943119,1736231443200,-500.0,9.594e-05,2]
[347943120,1736231443210,-150.42056811,9.797e-05,2]
[347943121,1736231443219,-2.09929989,9.797e-05,2]
[347943122,1736231443283,-497.90070011,9.797e-05,2]
[347943123,1736231443293,-500.0,9.797e-05,2]
[347943124,1736231443303,-500.0,9.797e-05,2]
[347943125,1736231443312,-500.0,9.797e-05,2]
[347943126,1736231443322,-500.0,9.797e-05,2]
[347943127,1736231443331,-500.0,9.797e-05,2]
[347943128,1736231443340,-500.0,9.797e-05,2]
[347943129,1736231443350,-500.0,9.797e-05,2]
[347943130,1736231443359,-500.0,9.797e-05,2]
[347943131,1736231443369,-246.10587077,9.797e-05,2]